bitfinex/quotes_SOLUSD_20230116
["timestamp","ask_amount","ask_price","bid_price","bid_amount"]
[1673878058945,17.0,23.207,23.185,20.0]
[1673878059701,21.46196354,23.208,23.186,17.0]
[1673878059915,21.46196354,23.208,23.187,20.0]
[1673878060103,21.46196354,23.208,23.188,17.0]
[1673878060316,21.46196354,23.208,23.189,20.0]
[1673878060530,113.137,23.209,23.189,20.0]
[1673878060855,17.0,23.208,23.189,20.0]
[1673878061047,38.46196354,23.208,23.189,20.0]
[1673878061257,21.46196354,23.207,23.183,20.0]
[1673878061463,17.0,23.206,23.183,20.0]
[1673878062300,17.0,23.208,23.183,20.0]
[1673878062742,38.46196354,23.208,23.183,20.0]
[1673878062943,38.46196354,23.208,23.182,109.5619]
[1673878063141,38.46196354,23.208,23.183,17.0]
[1673878064198,38.46196354,23.208,23.184,20.0]
[1673878065141,37.32186,23.207,23.184,20.0]
[1673878065350,21.97186,23.206,23.181,20.0]
[1673878065562,4.97186,23.205,23.17,16.81]
[1673878065773,16.83,23.2,23.17,16.81]
[1673878066012,111.502,23.199,23.17,16.81]
[1673878066211,17.0,23.198,23.17,16.81]
[1673878066618,32.36,23.197,23.17,16.81]
[1673878066849,17.0,23.196,23.17,16.81]
[1673878067041,52.87956808,23.196,23.17,16.81]
[1673878067254,32.36,23.195,23.17,16.81]
[1673878067458,17.0,23.194,23.17,16.81]
[1673878067674,52.87956808,23.194,23.17,16.81]
[1673878068313,35.87956808,23.194,23.171,17.0]
[1673878068829,35.79937098,23.194,23.17,16.81]
[1673878069242,35.79937098,23.194,23.171,17.0]
[1673878069674,17.0,23.193,23.172,20.0]
[1673878069906,52.79937098,23.193,23.173,17.0]
[1673878070435,4.97186,23.205,23.18,16.73]
[1673878070646,35.79937098,23.205,23.181,17.0]
[1673878070836,35.79937098,23.205,23.181,37.0]
[1673878071043,35.79937098,23.205,23.181,45.99527713]
[1673878071275,35.79784471,23.205,23.181,45.99527713]
[1673878072317,35.79784471,23.208,23.181,92.91844259]
[1673878072526,35.79784471,23.208,23.181,45.99527713]
[1673878073154,89.60980825,23.208,23.181,45.99527713]
[1673878073368,57.25980825,23.208,23.181,45.99527713]
[1673878074014,17.0,23.207,23.181,45.99527713]
[1673878074329,47.36468735,23.207,23.181,45.99527713]
[1673878074941,101.17665089,23.207,23.181,28.99527713]
[1673878075359,68.82665089,23.207,23.181,28.99527713]
[1673878077898,68.82665089,23.207,23.182,17.0]
[1673878078112,68.82665089,23.207,23.183,20.0]
[1673878079377,32.35,23.206,23.183,20.0]
[1673878079566,17.0,23.205,23.183,20.0]
[1673878079780,48.23616078,23.205,23.181,20.0]
[1673878079991,53.81196354,23.204,23.18,20.0]
[1673878080202,17.0,23.203,23.18,20.0]
[1673878080412,69.69812432,23.203,23.18,20.0]
[1673878080624,53.81196354,23.202,23.18,20.0]
[1673878080952,38.46196354,23.201,23.171,20.0]
[1673878081268,47.06019977,23.201,23.171,20.0]
[1673878081470,53.82196354,23.2,23.171,20.0]
[1673878081677,17.0,23.199,23.171,20.0]
[1673878081883,47.06019977,23.199,23.172,17.0]
[1673878082089,47.06019977,23.199,23.173,20.0]
[1673878082722,68.52216331,23.199,23.171,20.0]
[1673878086417,68.52216331,23.199,23.172,17.0]
[1673878086632,100.88216331,23.199,23.173,20.0]
[1673878087661,102.45967013,23.199,23.172,17.0]
[1673878088195,102.45967013,23.199,23.171,17.0]
[1673878088729,31.63770659,23.198,23.171,17.0]
[1673878088932,17.0,23.197,23.171,17.0]
[1673878089253,79.73227408,23.197,23.171,17.0]
[1673878089779,79.73227408,23.197,23.172,20.0]
[1673878090177,21.46196354,23.196,23.171,20.0]
[1673878090395,17.0,23.195,23.171,20.0]
[1673878090604,79.73227408,23.195,23.171,20.0]
[1673878090815,21.46196354,23.194,23.171,20.0]
[1673878091033,17.0,23.193,23.171,20.0]
[1673878091253,79.51948672,23.193,23.171,20.0]
[1673878091564,21.46196354,23.192,23.171,20.0]
[1673878091780,17.0,23.191,23.171,20.0]
[1673878091966,79.51948672,23.191,23.171,20.0]
[1673878092724,100.98145026,23.191,23.171,20.0]
[1673878094934,79.51948672,23.191,23.171,20.0]
[1673878095145,47.14948672,23.191,23.171,20.0]
[1673878095451,30.14948672,23.191,23.172,17.0]
[1673878095648,31.36060423,23.191,23.173,20.0]
[1673878095977,21.46196354,23.194,23.173,20.0]
[1673878095978,31.36060423,23.193,23.173,20.0]
[1673878096712,32.36,23.199,23.173,20.0]
[1673878096926,32.36,23.199,23.18,16.9]
[1673878096927,31.02972834,23.199,23.18,16.9]
[1673878097327,31.02972834,23.199,23.181,37.0]
[1673878097767,31.02972834,23.199,23.19,16.74]
[1673878097959,31.02972834,23.199,23.191,20.0]
[1673878098909,23.88638903,23.199,23.191,20.0]
[1673878100285,23.88638903,23.204,23.191,20.0]
[1673878100687,23.43661905,23.204,23.191,20.0]
[1673878101119,23.43661905,23.204,23.181,17.0]
[1673878101120,23.43661905,23.204,23.182,20.0]
[1673878101339,128.9764,23.203,23.182,20.0]
[1673878101537,152.41301905,23.203,23.182,20.0]
[1673878101951,53.81196354,23.202,23.182,20.0]
[1673878102163,17.0,23.201,23.181,20.0]
[1673878102371,40.43661905,23.201,23.181,20.0]
[1673878102688,32.36,23.2,23.181,20.0]
[1673878102898,17.0,23.199,23.181,20.0]
[1673878103217,40.59964979,23.199,23.181,20.0]
[1673878103942,23.59964979,23.199,23.181,20.0]
[1673878104572,18.85165398,23.199,23.181,20.0]
[1673878104897,18.85165398,23.202,23.181,20.0]
[1673878105424,17.0,23.201,23.181,20.0]
[1673878105628,35.85165398,23.201,23.181,20.0]
[1673878108997,72.22440872,23.2,23.181,20.0]
[1673878109208,35.40244518,23.199,23.173,112.2395]
[1673878109415,18.40244518,23.198,23.17,16.83]
[1673878109628,72.22440872,23.198,23.17,16.83]
[1673878109834,56.86440872,23.197,23.17,16.83]
[1673878110265,53.82196354,23.196,23.17,16.83]
[1673878110583,38.46196354,23.195,23.17,16.83]
[1673878110781,56.89084932,23.195,23.171,20.0]
[1673878110992,53.82196354,23.194,23.171,20.0]
[1673878111225,17.0,23.193,23.171,20.0]
[1673878111450,169.84544932,23.193,23.171,20.0]
[1673878112071,21.46196354,23.192,23.171,20.0]
[1673878112280,17.0,23.191,23.171,20.0]
[1673878112599,35.42888578,23.191,23.171,20.0]
[1673878114059,18.42888578,23.191,23.171,20.0]
[1673878114277,18.793555,23.191,23.172,17.0]
[1673878114484,112.9546,23.193,23.173,20.0]
[1673878115431,17.0,23.192,23.173,20.0]
[1673878115855,32.36,23.199,23.18,16.9]
[1673878116058,118.3329,23.2,23.18,16.9]
[1673878116267,118.3329,23.2,23.181,20.0]
[1673878118472,118.3329,23.2,23.182,17.0]
[1673878118913,118.3329,23.2,23.183,20.0]
[1673878119538,17.0,23.199,23.183,20.0]
[1673878120575,21.46196354,23.207,23.183,20.0]
[1673878121314,112.3647,23.206,23.181,20.0]
[1673878121526,112.3647,23.206,23.182,17.0]
[1673878121734,112.3647,23.206,23.183,20.0]
[1673878121952,38.46196354,23.205,23.183,20.0]
[1673878122262,38.46196354,23.205,23.181,20.0]
[1673878122478,38.46196354,23.205,23.182,17.0]
[1673878122670,38.46196354,23.205,23.183,20.0]
[1673878123198,17.0,23.205,23.181,20.0]
[1673878123406,112.3647,23.206,23.19,16.83]
[1673878123622,32.34,23.214,23.191,20.0]
[1673878123828,149.1294,23.217,23.192,17.0]
[1673878124045,116.7994,23.217,23.2,16.74]
[1673878124251,116.7994,23.217,23.201,20.0]
[1673878126367,21.46196354,23.224,23.201,20.0]
[1673878126697,21.46196354,23.224,23.21,16.9]
[1673878127026,20.0,23.227,23.211,20.0]
[1673878127198,21.46196354,23.227,23.211,20.0]
[1673878127412,119.5831,23.228,23.211,20.0]
[1673878130038,32.31,23.234,23.22,16.74]
[1673878130258,118.7414,23.238,23.221,20.0]
[1673878130683,32.3,23.242,23.221,20.0]
[1673878131636,20.0,23.241,23.221,20.0]
[1673878132474,20.0,23.242,23.221,20.0]
[1673878132665,138.7414,23.243,23.221,20.0]
[1673878133319,118.7414,23.243,23.221,20.0]
[1673878133508,118.7414,23.243,23.222,17.0]
[1673878133839,118.7414,23.243,23.223,20.0]
[1673878134055,118.7414,23.243,23.23,16.9]
[1673878134395,118.7414,23.243,23.231,20.0]
[1673878135310,32.29,23.248,23.231,20.0]
[1673878135510,112.7481,23.252,23.231,20.0]
[1673878136232,20.0,23.251,23.231,20.0]
[1673878136988,112.7481,23.252,23.231,20.0]
[1673878137197,112.7481,23.252,23.232,17.0]
[1673878137410,112.7481,23.252,23.233,20.0]
[1673878137608,112.7481,23.252,23.234,17.0]
[1673878137818,112.7481,23.252,23.235,20.0]
[1673878138679,112.7481,23.252,23.232,20.0]
[1673878138882,17.0,23.251,23.232,20.0]
[1673878139109,20.0,23.25,23.232,20.0]
[1673878139292,17.0,23.249,23.232,20.0]
[1673878140979,38.46196354,23.249,23.232,20.0]
[1673878141302,38.46196354,23.249,23.23,16.9]
[1673878141303,52.29,23.248,23.23,16.9]
[1673878141515,17.0,23.247,23.22,16.74]
[1673878141721,20.0,23.246,23.22,16.74]
[1673878141934,17.0,23.245,23.22,16.74]
[1673878142764,20.0,23.243,23.22,16.74]
[1673878142975,17.0,23.242,23.22,16.74]
[1673878143196,131.6755,23.242,23.22,16.74]
[1673878143412,32.3,23.241,23.22,16.74]
[1673878143610,17.0,23.24,23.22,16.74]
[1673878143821,38.46196354,23.24,23.22,16.74]
[1673878144029,20.0,23.238,23.221,20.0]
[1673878144259,17.0,23.237,23.221,20.0]
[1673878144668,32.31,23.236,23.22,16.74]
[1673878144886,20.0,23.234,23.22,16.74]
[1673878145204,17.0,23.233,23.22,16.74]
[1673878145412,53.66414601,23.233,23.22,16.74]
[1673878145840,53.66414601,23.233,23.22,25.27]
[1673878146653,37.23844947,23.233,23.221,9.00057348]
[1673878146887,37.23844947,23.233,23.222,17.0]
[1673878147071,37.23844947,23.233,23.223,20.0]
[1673878147279,37.23844947,23.233,23.224,17.0]
[1673878147492,37.23844947,23.233,23.225,20.0]
[1673878147704,37.23844947,23.241,23.226,17.0]
[1673878147920,37.23844947,23.241,23.23,25.21]
[1673878148123,37.23844947,23.241,23.231,20.0]
[1673878148124,37.0,23.24,23.231,20.0]
[1673878148344,74.23844947,23.24,23.224,20.0]
[1673878148769,74.23844947,23.24,23.221,20.0]
[1673878150025,37.23844947,23.24,23.23,25.27]
[1673878150227,37.23844947,23.24,23.231,20.0]
[1673878151079,36.00800061,23.24,23.231,20.0]
[1673878151943,36.00800061,23.241,23.231,20.0]
[1673878154037,17.0,23.24,23.231,20.0]
[1673878154245,47.74243065,23.24,23.231,20.0]
[1673878154450,47.74243065,23.24,23.221,20.0]
[1673878154885,20.0,23.239,23.221,20.0]
[1673878155184,51.31886746,23.239,23.23,25.27]
[1673878155609,51.31886746,23.239,23.231,20.0]
[1673878155828,31.31886746,23.239,23.231,20.0]
[1673878156678,31.37135187,23.239,23.231,20.0]
[1673878156868,20.0,23.244,23.231,20.0]
[1673878156869,31.37135187,23.243,23.231,20.0]
[1673878157414,17.0,23.242,23.231,20.0]
[1673878157623,20.0,23.241,23.231,20.0]
[1673878157836,31.37135187,23.241,23.231,20.0]
[1673878158147,20.0,23.244,23.231,20.0]
[1673878158359,51.37135187,23.244,23.231,20.0]
[1673878158550,38.86873059,23.244,23.231,20.0]
[1673878159287,17.0,23.243,23.231,20.0]
[1673878159500,35.86873059,23.243,23.231,20.0]
[1673878159703,17.0,23.243,23.231,20.0]
[1673878159927,20.0,23.244,23.231,20.0]
[1673878160123,38.86873059,23.244,23.231,20.0]
[1673878162883,20.0,23.244,23.231,20.0]
[1673878163088,17.0,23.243,23.231,20.0]
[1673878163300,35.64491154,23.243,23.231,20.0]
[1673878163611,17.0,23.243,23.231,20.0]
[1673878164231,35.64491154,23.243,23.231,20.0]
[1673878164445,67.94491154,23.243,23.22,25.47]
[1673878164986,20.0,23.242,23.22,25.47]
[1673878165303,17.0,23.241,23.22,25.47]
[1673878165526,67.8017129,23.241,23.22,25.47]
[1673878165828,20.0,23.24,23.22,16.84]
[1673878166018,17.0,23.239,23.22,16.84]
[1673878166229,35.5017129,23.239,23.22,16.84]
[1673878166430,20.0,23.238,23.22,16.84]
[1673878166653,17.0,23.237,23.22,16.84]
[1673878167289,17.0,23.237,23.221,20.0]
[1673878170872,52.31,23.236,23.213,46.92316546]
[1673878171057,70.72832532,23.236,23.21,16.79]
[1673878171267,38.46196354,23.235,23.21,16.79]
[1673878171479,56.88028886,23.235,23.21,16.79]
[1673878171703,20.0,23.233,23.21,16.79]
[1673878171920,17.0,23.232,23.21,16.79]
[1673878172127,49.31,23.232,23.21,16.79]
[1673878172320,49.31,23.232,23.201,9.59235308]
[1673878172321,70.77196354,23.232,23.201,9.59235308]
[1673878172533,70.77196354,23.232,23.2,16.98]
[1673878172534,16.84,23.23,23.2,16.98]
[1673878172751,20.0,23.228,23.2,16.98]
[1673878172975,56.82594281,23.228,23.2,16.98]
[1673878173167,63.88049225,23.227,23.2,16.98]
[1673878173496,86.14594281,23.227,23.2,16.98]
[1673878173698,20.0,23.226,23.2,16.98]
[1673878173902,17.0,23.225,23.201,17.0]
[1673878174228,20.0,23.224,23.202,20.0]
[1673878174443,17.0,23.223,23.201,17.0]
[1673878174649,20.0,23.222,23.201,17.0]
[1673878174843,17.0,23.221,23.201,17.0]
[1673878175073,52.60482411,23.221,23.201,17.0]
[1673878175420,20.0,23.22,23.201,17.0]
[1673878175598,17.0,23.219,23.201,17.0]
[1673878175806,52.60482411,23.219,23.202,20.0]
[1673878176770,52.60482411,23.219,23.201,20.0]
[1673878177586,20.0,23.23,23.21,16.77]
[1673878177798,57.47384855,23.228,23.211,20.0]
[1673878178856,17.0,23.227,23.211,20.0]
[1673878179072,50.16526685,23.227,23.211,20.0]
[1673878179483,33.16526685,23.227,23.211,20.0]
[1673878179700,33.16526685,23.227,23.212,17.0]
[1673878179909,33.16526685,23.227,23.214,20.0]
[1673878180113,33.16526685,23.227,23.22,16.84]
[1673878180323,33.16526685,23.235,23.221,20.0]
[1673878182009,17.0,23.234,23.221,20.0]
[1673878182218,49.87785916,23.234,23.221,20.0]
[1673878182633,20.0,23.233,23.221,20.0]
[1673878182972,17.0,23.232,23.21,16.67]
[1673878183182,41.47596807,23.232,23.21,16.67]
[1673878183898,41.47596807,23.232,23.211,17.0]
[1673878184110,41.47596807,23.232,23.212,20.0]
[1673878186418,20.0,23.231,23.212,20.0]
[1673878186632,17.0,23.23,23.211,20.0]
[1673878186838,42.37784739,23.23,23.211,20.0]
[1673878190013,20.0,23.229,23.211,20.0]
[1673878190230,17.0,23.228,23.211,20.0]
[1673878190441,42.68046815,23.228,23.211,20.0]
[1673878194937,26.01353962,23.226,23.211,20.0]
[1673878196305,24.71711937,23.226,23.212,17.0]
[1673878196512,24.71711937,23.226,23.213,20.0]
[1673878196727,25.13028745,23.226,23.213,20.0]
[1673878197148,25.13028745,23.23,23.213,20.0]
[1673878198195,17.0,23.229,23.213,20.0]
[1673878198407,42.13028745,23.229,23.213,20.0]
[1673878200719,42.13028745,23.229,23.211,20.0]
[1673878201033,42.13028745,23.229,23.207,20.0]
[1673878201477,20.0,23.227,23.207,20.0]
[1673878201684,17.0,23.226,23.207,20.0]
[1673878201906,37.2322191,23.226,23.207,20.0]
[1673878202857,32.3,23.238,23.21,16.84]
[1673878203058,131.87372029,23.237,23.22,16.84]
[1673878203265,131.87372029,23.237,23.221,20.0]
[1673878203489,20.0,23.236,23.221,20.0]
[1673878203686,40.19852029,23.236,23.221,20.0]
[1673878204112,20.19852029,23.235,23.21,16.67]
[1673878204315,20.0,23.234,23.21,16.67]
[1673878204538,72.50852029,23.234,23.21,16.67]
[1673878204741,52.31,23.234,23.21,16.67]
[1673878204956,17.0,23.233,23.21,16.67]
[1673878205380,20.0,23.232,23.21,16.67]
[1673878205575,17.0,23.231,23.211,20.0]
[1673878205786,49.31,23.231,23.211,20.0]
[1673878206000,17.0,23.231,23.211,20.0]
[1673878207273,20.0,23.232,23.211,20.0]
[1673878207475,20.0,23.236,23.212,17.0]
[1673878207680,20.0,23.236,23.213,20.0]
[1673878207907,20.0,23.236,23.214,20.0]
[1673878208112,20.0,23.236,23.215,20.0]
[1673878208651,20.0,23.236,23.216,17.0]
[1673878208833,17.0,23.235,23.216,17.0]
[1673878209043,16.88200455,23.235,23.214,17.0]
[1673878209254,16.88200455,23.235,23.215,20.0]
[1673878209474,16.88200455,23.235,23.216,17.0]
[1673878209696,16.88200455,23.235,23.217,20.0]
[1673878212093,20.0,23.24,23.22,16.67]
[1673878212309,20.0,23.24,23.221,20.0]
[1673878213373,17.0,23.236,23.221,20.0]
[1673878213580,37.0,23.236,23.221,20.0]
[1673878214744,20.0,23.236,23.221,20.0]
[1673878215052,20.0,23.24,23.222,17.0]
[1673878215249,20.0,23.24,23.223,20.0]
[1673878215454,20.0,23.24,23.224,17.0]
[1673878215666,20.0,23.24,23.225,20.0]
[1673878217883,17.0,23.239,23.225,20.0]
[1673878218304,17.0,23.239,23.221,20.0]
[1673878219132,52.3,23.243,23.221,20.0]
[1673878219133,32.3,23.243,23.221,20.0]
[1673878219360,138.76536354,23.244,23.222,17.0]
[1673878219577,20.0,23.243,23.223,20.0]
[1673878219769,20.0,23.243,23.222,17.0]
[1673878220000,20.0,23.243,23.221,17.0]
[1673878221230,20.0,23.243,23.222,20.0]
[1673878221441,20.0,23.243,23.223,17.0]
[1673878221651,117.3034,23.244,23.223,17.0]
[1673878221881,117.3034,23.244,23.224,20.0]
[1673878222083,20.0,23.243,23.224,20.0]
[1673878222917,17.0,23.242,23.224,20.0]
[1673878226087,17.0,23.242,23.221,20.0]
[1673878226507,20.0,23.241,23.221,20.0]
[1673878226829,20.0,23.239,23.221,20.0]
[1673878227243,17.0,23.238,23.221,20.0]
[1673878227777,20.0,23.237,23.221,20.0]
[1673878227979,17.0,23.236,23.221,20.0]
[1673878228192,17.0,23.236,23.219,20.0]
[1673878229437,17.0,23.236,23.218,119.2063]
[1673878229438,20.0,23.234,23.21,16.76]
[1673878229660,20.0,23.232,23.21,16.76]
[1673878229859,17.0,23.231,23.21,16.76]
[1673878230080,20.0,23.232,23.21,16.76]
[1673878230278,17.0,23.231,23.21,16.76]
[1673878230493,17.0,23.231,23.21,59.667877]
[1673878230714,53.07715166,23.231,23.211,17.0]
[1673878230934,32.29,23.245,23.22,16.67]
[1673878231118,56.07715166,23.241,23.221,17.0]
[1673878231771,56.07715166,23.241,23.222,20.0]
[1673878232617,17.0,23.24,23.222,20.0]
[1673878232805,53.73087217,23.24,23.222,20.0]
[1673878233646,20.0,23.239,23.222,20.0]
[1673878233861,56.73087217,23.239,23.222,20.0]
[1673878239434,17.0,23.238,23.222,20.0]
[1673878239643,54.1836637,23.238,23.222,20.0]
[1673878239851,20.0,23.237,23.222,20.0]
[1673878240075,55.91099531,23.237,23.222,20.0]
[1673878240683,17.0,23.236,23.221,20.0]
[1673878240890,52.91099531,23.236,23.221,20.0]
[1673878241132,20.0,23.235,23.221,20.0]
[1673878241331,56.00156932,23.235,23.221,20.0]
[1673878241958,20.0,23.235,23.221,20.0]
[1673878242167,56.00156932,23.235,23.221,20.0]
[1673878242488,20.0,23.235,23.221,20.0]
[1673878242700,55.73914887,23.235,23.221,20.0]
[1673878244155,31.56049225,23.234,23.21,12.63]
[1673878244469,21.46196354,23.233,23.21,12.63]
[1673878244685,17.0,23.232,23.21,12.63]
[1673878244898,20.0,23.231,23.21,12.63]
[1673878245112,17.0,23.23,23.21,12.63]
[1673878245317,86.59395253,23.23,23.21,12.63]
[1673878245519,20.0,23.229,23.21,12.63]
[1673878245731,17.0,23.228,23.21,12.63]
[1673878245953,20.0,23.227,23.211,20.0]
[1673878246166,17.0,23.226,23.211,20.0]
[1673878246383,54.28395253,23.226,23.21,12.63]
[1673878246576,20.0,23.225,23.21,12.63]
[1673878246785,17.0,23.224,23.21,12.63]
[1673878246994,54.49239768,23.224,23.21,12.63]
[1673878247432,20.0,23.223,23.21,12.63]
[1673878247647,17.0,23.222,23.21,12.63]
[1673878247836,54.49239768,23.222,23.211,20.0]
[1673878249327,37.49239768,23.222,23.211,20.0]
[1673878249741,17.0,23.221,23.211,20.0]
[1673878249949,54.60987055,23.221,23.211,20.0]
[1673878254144,52.32,23.228,23.211,20.0]
[1673878254145,21.46196354,23.23,23.211,20.0]
[1673878254348,35.32910079,23.23,23.212,17.0]
[1673878254571,35.32910079,23.23,23.213,20.0]
[1673878254897,35.32910079,23.23,23.213,29.59235308]
[1673878255094,35.32910079,23.23,23.22,12.58]
[1673878255307,35.32910079,23.23,23.221,20.0]
[1673878255515,32.3,23.238,23.221,20.0]
[1673878255726,36.42670185,23.238,23.221,20.0]
[1673878255940,36.42670185,23.238,23.221,29.59235308]
[1673878256139,36.42670185,23.238,23.221,20.0]
[1673878256353,36.42670185,23.238,23.222,26.59235308]
[1673878256560,27.05789292,23.238,23.223,20.0]
[1673878257638,27.05789292,23.239,23.223,20.0]
[1673878258275,17.0,23.238,23.223,20.0]
[1673878258470,20.0,23.237,23.223,20.0]
[1673878258675,47.05789292,23.237,23.223,29.59235308]
[1673878258906,52.29,23.247,23.224,17.0]
[1673878259105,166.42872995,23.244,23.23,12.58]
[1673878259436,166.42872995,23.244,23.231,20.0]
[1673878260170,17.0,23.243,23.231,20.0]
[1673878260798,38.97430599,23.243,23.231,20.0]
[1673878261121,17.0,23.243,23.231,20.0]
[1673878261324,38.97430599,23.243,23.231,20.0]
[1673878261520,17.0,23.243,23.231,20.0]
[1673878265618,39.47655999,23.243,23.231,20.0]
[1673878266265,17.0,23.243,23.231,20.0]
[1673878266793,20.0,23.242,23.231,20.0]
[1673878266984,17.0,23.241,23.231,20.0]
[1673878267191,39.4179517,23.241,23.231,20.0]
[1673878267403,39.4179517,23.241,23.22,12.58]
[1673878267734,20.0,23.24,23.22,12.58]
[1673878268054,17.0,23.239,23.22,12.58]
[1673878268262,39.4179517,23.239,23.22,12.58]
[1673878268461,20.0,23.238,23.22,12.58]
[1673878268670,17.0,23.237,23.221,20.0]
[1673878268895,39.32309819,23.237,23.221,20.0]
[1673878269627,20.0,23.236,23.221,20.0]
[1673878269843,17.0,23.235,23.221,20.0]
[1673878270061,39.32309819,23.235,23.221,20.0]
[1673878270264,22.32309819,23.235,23.221,29.59235308]
[1673878271208,22.32309819,23.235,23.222,17.0]
[1673878271536,22.32309819,23.235,23.223,29.59235308]
[1673878272062,22.79079484,23.235,23.22,12.58]
[1673878272274,21.46196354,23.234,23.21,12.63]
[1673878272589,20.0,23.233,23.21,12.63]
[1673878272802,17.0,23.232,23.21,12.63]
[1673878273001,20.0,23.231,23.21,12.63]
[1673878273217,17.0,23.23,23.21,12.63]
[1673878273541,39.76185433,23.23,23.211,20.0]
[1673878274154,21.46196354,23.229,23.21,12.63]
[1673878274369,17.0,23.228,23.21,12.63]
[1673878274573,20.0,23.227,23.21,12.63]
[1673878274782,20.0,23.227,23.2,12.56]
[1673878274783,17.0,23.226,23.2,12.56]
[1673878274995,39.1204359,23.226,23.2,12.56]
[1673878275222,53.78196354,23.225,23.2,12.56]
[1673878275423,12.51,23.22,23.19,12.58]
[1673878275746,20.0,23.218,23.19,12.58]
[1673878275932,17.0,23.217,23.19,12.58]
[1673878276148,92.91239944,23.217,23.19,12.58]
[1673878276484,20.0,23.216,23.19,12.58]
[1673878276665,17.0,23.215,23.19,12.58]
[1673878276880,71.94936182,23.215,23.19,12.58]
[1673878277119,20.0,23.214,23.19,12.58]
[1673878277302,17.0,23.213,23.19,12.58]
[1673878277516,20.0,23.212,23.19,12.58]
[1673878277725,17.0,23.211,23.19,12.58]
[1673878277949,39.60936182,23.211,23.19,12.58]
[1673878279113,39.60936182,23.211,23.193,20.0]
[1673878279422,20.0,23.21,23.193,20.0]
[1673878279617,17.0,23.209,23.191,20.0]
[1673878280471,39.12882951,23.209,23.191,20.0]
[1673878282351,17.0,23.209,23.191,20.0]
[1673878283309,21.46196354,23.208,23.182,20.0]
[1673878283508,37.0,23.207,23.18,12.58]
[1673878283729,58.64056177,23.207,23.18,12.58]
[1673878283935,32.35,23.206,23.18,12.58]
[1673878284256,37.0,23.205,23.18,12.58]
[1673878284470,58.64056177,23.205,23.181,17.0]
[1673878285199,114.5211,23.208,23.19,12.53]
[1673878285419,114.5211,23.208,23.191,17.0]
[1673878285729,18.23919333,23.208,23.192,20.0]
[1673878285940,18.23919333,23.208,23.193,37.0]
[1673878286131,18.23919333,23.208,23.193,20.0]
[1673878286340,18.23919333,23.208,23.191,20.0]
[1673878286552,20.0,23.215,23.191,20.0]
[1673878286762,52.34,23.215,23.192,117.8484]
[1673878286980,17.0,23.214,23.193,20.0]
[1673878287599,49.34,23.214,23.193,20.0]
[1673878287810,20.0,23.213,23.193,20.0]
[1673878288023,17.0,23.212,23.193,20.0]
[1673878289071,20.0,23.213,23.193,20.0]